fUSD/lending_fUSD_20250214
["ID","MTS","AMOUNT","RATE_DAILY","PERIOD"]
[353111819,1739563886781,-1488.96,0.00014109,2]
[353111820,1739563886791,-1740.63,0.00014109,2]
[353111821,1739563886801,-2916.96,0.00014109,2]
[353111822,1739563886811,-500.0,0.00014109,2]
[353111823,1739563886821,-500.0,0.00014109,2]
[353111824,1739563886831,-1806.9,0.00014109,2]
[353111825,1739563886842,-5082.1,0.00014109,2]
[353111826,1739563886852,-713.2,0.00014109,2]
[353111827,1739563886863,-500.0,0.00014109,2]
[353111828,1739563886873,-509.12536963,0.00014109,2]
[353111829,1739563886883,-2918.13,0.00014109,2]
[353111830,1739563886893,-6582.72,0.00014109,2]
[353111831,1739563886904,-1998.38,0.00014109,2]
[353111832,1739563886916,-500.0,0.00014109,2]
[353111833,1739563886929,-500.0,0.00014109,2]
[353111834,1739563886940,-190.712929,0.00014109,2]
[353111835,1739563886952,-913.59,0.00014109,2]
[353111836,1739563886962,-500.0,0.00014109,2]
[353111837,1739563886974,-3560.44,0.00014109,2]
[353111838,1739563886986,-190.712929,0.00014109,2]
[353111839,1739563886996,-151.0,0.00014109,2]
[353111840,1739563887007,-500.0,0.00014109,2]
[353111841,1739563887017,-2986.15,0.00014109,2]
[353111842,1739563887029,-3033.09,0.00014109,2]
[353111843,1739563887039,-2105.33,0.00014109,2]
[353111844,1739563887049,-1872.73,0.00014109,2]
[353111845,1739563887059,-500.0,0.00014109,2]
[353111846,1739563887070,-5014.83,0.00014109,2]
[353111847,1739563887080,-4493.7,0.00014109,2]
[353111848,1739563887090,-1363.47,0.00014109,2]
[353111849,1739563887100,-500.0,0.00014109,2]
[353111850,1739563887110,-1318.39,0.00014109,2]
[353111851,1739563887120,-2267.94,0.00014109,2]
[353111852,1739563887131,-749.42,0.00014109,2]
[353111853,1739563887141,-524.87,0.00014109,2]
[353111854,1739563887150,-500.0,0.00014109,2]
[353111855,1739563887161,-500.0,0.00014109,2]
[353111856,1739563887171,-1469.98,0.00014109,2]
[353111857,1739563887182,-151.0,0.00014109,2]
[353111858,1739563887192,-1576.63,0.00014109,2]
[353111859,1739563887203,-500.0,0.00014109,2]
[353111860,1739563887214,-2020.040466,0.00014109,2]
[353111861,1739563887224,-3629.53,0.00014109,2]
[353111862,1739563887234,-1206.13,0.00014109,2]
[353111863,1739563887244,-500.0,0.00014109,2]
[353111864,1739563887254,-946.36,0.00014109,2]
[353111865,1739563887264,-500.0,0.00014109,2]
[353111866,1739563887274,-2020.040466,0.00014109,2]
[353111867,1739563887286,-537.54,0.00014109,2]
[353111868,1739563887296,-3171.97,0.00014109,2]
[353111869,1739563887306,-500.0,0.00014109,2]
[353111870,1739563887317,-2626.49,0.00014109,2]
[353111871,1739563887327,-588.06,0.00014109,2]
[353111872,1739563887338,-773.79,0.00014109,2]
[353111873,1739563887348,-500.0,0.00014109,2]
[353111874,1739563887358,-2568.77,0.00014109,2]
[353111875,1739563887368,-500.0,0.00014109,2]
[353111876,1739563887382,-1944.99,0.00014109,2]
[353111877,1739563887393,-512.1418223,0.00014109,2]
[353111878,1739563887403,-4608.6,0.00014109,2]
[353111879,1739563887414,-610.9272155,0.00014109,2]
[353111880,1739563887424,-500.0,0.00014109,2]
[353111881,1739563887434,-1710.92,0.00014109,2]
[353111882,1739563887444,-2526.46,0.00014109,2]
[353111883,1739563887457,-2579.87,0.00014109,2]
[353111884,1739563887467,-500.0,0.00014109,2]
[353111885,1739563887477,-3705.69,0.00014109,2]
[353111886,1739563887488,-500.0,0.00014109,2]
[353111887,1739563887498,-500.0,0.00014109,2]
[353111888,1739563887508,-500.0,0.00014109,2]
[353111889,1739563887518,-3939.13,0.00014109,2]
[353111890,1739563887529,-3249.7,0.00014109,2]
[353111891,1739563887540,-1898.28,0.00014109,2]
[353111892,1739563887551,-3126.6,0.00014109,2]
[353111893,1739563887562,-2747.99,0.00014109,2]
[353111894,1739563887573,-508.99,0.00014109,2]
[353111895,1739563887583,-5009.47,0.00014109,2]
[353111896,1739563887797,-500.0,0.00014109,2]
[353111897,1739563887827,-500.0,0.00014109,2]
[353111898,1739563887838,-2056.13,0.00014109,2]
[353111899,1739563887848,-751.62,0.00014109,2]
[353111900,1739563887859,-500.0,0.00014109,2]
[353111901,1739563887868,-3402.8,0.00014109,2]
[353111902,1739563887878,-3505.75,0.00014109,2]
[353111903,1739563887888,-3153.08,0.00014109,2]
[353111904,1739563887898,-2558.24,0.00014109,2]
[353111905,1739563887908,-500.0,0.00014109,2]
[353111906,1739563887918,-1719.88,0.00014109,2]
[353111907,1739563887928,-1199.35,0.00014109,2]
[353111908,1739563887937,-608.55,0.00014109,2]
[353111909,1739563887947,-500.0,0.00014109,2]
[353111910,1739563887958,-2029.74,0.00014109,2]
[353111911,1739563887969,-3172.24,0.00014109,2]
[353111912,1739563887979,-982.33,0.00014109,2]
[353111913,1739563887989,-589.48305342,0.00014109,2]
[353111914,1739563887999,-1260.25,0.00014109,2]
[353111915,1739563888009,-3830.7,0.00014109,2]
[353111916,1739563888019,-712.2,0.00014109,2]
[353111917,1739563888028,-500.0,0.00014109,2]
[353111918,1739563888038,-151.0,0.00014109,2]
[353111919,1739563888048,-4128.85,0.00014109,2]
[353111920,1739563888058,-1339.72,0.00014109,2]
[353111921,1739563888068,-960.59,0.00014109,2]
[353111922,1739563888078,-1280.89,0.00014109,2]
[353111923,1739563888088,-500.0,0.00014109,2]
[353111924,1739563888102,-4003.52,0.00014109,2]
[353111925,1739563888113,-4835.24,0.00014109,2]
[353111926,1739563888123,-500.0,0.00014109,2]
[353111927,1739563888132,-3628.74,0.00014109,2]
[353111928,1739563888142,-5779.5,0.00014109,2]
[353111929,1739563888152,-500.0,0.00014109,2]
[353111930,1739563888162,-888.5,0.00014109,2]
[353111931,1739563888172,-8834.81,0.00014109,2]
[353111932,1739563888183,-872.5,0.00014109,2]
[353111933,1739563888193,-500.0,0.00014109,2]
[353111934,1739563888203,-500.0,0.00014109,2]
[353111935,1739563888214,-2332.51,0.00014109,2]
[353111936,1739563888224,-1034.36,0.00014109,2]
[353111937,1739563888234,-2184.82,0.00014109,2]
[353111938,1739563888244,-554.07,0.00014109,2]
[353111939,1739563888254,-1987.19,0.00014109,2]
[353111940,1739563888264,-4912.6,0.00014109,2]
[353111941,1739563888274,-506.75121502,0.00014109,2]
[353111942,1739563888284,-1097.4,0.00014109,2]
[353111943,1739563888294,-500.0,0.00014109,2]
[353111944,1739563888305,-3020.58,0.00014109,2]
[353111945,1739563888314,-1083.99,0.00014109,2]
[353111946,1739563888324,-1064.67,0.00014109,2]
[353111947,1739563888334,-1015.72,0.00014109,2]
[353111948,1739563888344,-151.0,0.00014109,2]
[353111949,1739563888354,-3463.46,0.00014109,2]
[353111950,1739563888364,-743.74,0.00014109,2]
[353111951,1739563888379,-672.87,0.00014109,2]
[353111952,1739563888389,-2341.5,0.00014109,2]
[353111953,1739563888398,-500.0,0.00014109,2]
[353111954,1739563888408,-585.95,0.00014109,2]
[353111955,1739563888419,-1938.45,0.00014109,2]
[353111956,1739563888429,-1204.22,0.00014109,2]
[353111957,1739563888439,-622.41,0.00014109,2]
[353111958,1739563888449,-500.0,0.00014109,2]
[353111959,1739563888460,-523.52460611,0.00014118,2]
[353111960,1739563888471,-889.99,0.00014163,2]
[353111961,1739563888481,-500.0,0.00014173,2]
[353111962,1739563888490,-2104.7762305,0.0001418,2]
[353111963,1739563888500,-748.1030709,0.0001418,2]
[353111964,1739563888510,-5517.0905679,0.0001418,2]
[353111965,1739563888520,-380.9955431,0.0001418,2]
[353111966,1739563888533,-558.8524189,0.0001418,2]
[353111967,1739563888543,-279.2302,0.0001418,2]
[353111968,1739563888552,-2874.3660062,0.0001418,2]
[353111969,1739563888562,-3383.0386678,0.0001418,2]
[353111970,1739563888572,-203.15424229,0.00014181,2]
[353111971,1739563888582,-165.48300139,0.0001419,2]
[353111972,1739563888592,-500.0,0.0001419,2]
[353111973,1739563888602,-500.0,0.0001419,2]
[353111974,1739563888612,-4729.03,0.0001419,2]
[353111975,1739563888622,-1043.05,0.0001419,2]
[353111976,1739563888632,-2256.26,0.0001419,2]
[353111977,1739563888642,-2819.79,0.0001419,2]
[353111978,1739563888652,-3904.0,0.0001419,2]
[353111979,1739563888663,-2371.08,0.0001419,2]
[353111980,1739563888673,-3464.8,0.0001419,2]
[353111981,1739563888682,-683.71,0.0001419,2]
[353111982,1739563888692,-1290.27,0.0001419,2]
[353111983,1739563888702,-3268.9,0.0001419,2]
[353111984,1739563888713,-500.0,0.0001419,2]
[353111985,1739563888724,-150.0,0.0001419,2]
[353111986,1739563888734,-500.0,0.0001419,2]
[353111987,1739563888744,-502.57780083,0.00014191,3]
[353111988,1739563888754,-6855.63463746,0.00014191,2]
[353111989,1739563888766,-1500071.2586314,0.00014191,3]
[353111990,1739563888775,-500.0,0.00014191,2]
[353111991,1739563888791,-500.0,0.00014191,2]
[353111992,1739563888801,-500.0,0.00014191,2]
[353111993,1739563888812,-500.0,0.00014191,2]
[353111994,1739563888821,-942.67,0.00014191,2]
[353111995,1739563888830,-528.8893261,0.00014191,2]
[353111996,1739563888840,-676.71,0.00014191,2]
[353111997,1739563888850,-697.37,0.00014191,2]
[353111998,1739563888860,-500.0,0.00014191,2]
[353111999,1739563888869,-921.36,0.00014191,2]
[353112000,1739563888879,-500.0,0.00014191,2]
[353112001,1739563888889,-739.46,0.00014191,2]
[353112002,1739563888900,-500.0,0.00014191,2]
[353112003,1739563888910,-500.0,0.00014191,2]
[353112004,1739563888920,-500.0,0.00014191,2]
[353112005,1739563888930,-616.46,0.00014191,2]
[353112006,1739563888940,-742.2,0.00014191,2]
[353112007,1739563888950,-628.42,0.00014191,2]
[353112008,1739563888960,-505.86,0.00014191,2]
[353112009,1739563888970,-569.87,0.00014191,2]
[353112010,1739563888982,-879.66,0.00014191,2]
[353112011,1739563888992,-500.0,0.00014191,2]
[353112012,1739563889002,-500.0,0.00014191,2]
[353112013,1739563889011,-500.0,0.00014191,2]
[353112014,1739563889021,-500.0,0.00014191,2]
[353112015,1739563889033,-500.0,0.00014191,2]
[353112016,1739563889043,-843.42,0.00014191,2]
[353112017,1739563889053,-500.0,0.00014191,2]
[353112018,1739563889063,-162.98498992,0.00014191,2]
[353112019,1739563889072,-468.82677704,0.00014191,2]
[353112020,1739563889082,-500.0,0.00014191,2]
[353112021,1739563889092,-500.0,0.00014191,2]
[353112022,1739563889102,-500.0,0.00014191,2]
[353112023,1739563889113,-856.63,0.00014191,2]
[353112024,1739563889123,-485.02523778,0.00014191,2]
[353112025,1739563889489,-14.97476222,0.00014191,2]
[353112026,1739563889500,-661.56,0.00014191,2]
[353112027,1739563889511,-500.0,0.00014191,2]
[353112028,1739563889520,-500.0,0.00014191,2]
[353112029,1739563889531,-500.0,0.00014191,2]
[353112030,1739563889541,-531.99,0.00014191,2]
[353112031,1739563889551,-500.0,0.00014191,2]
[353112032,1739563889560,-500.0,0.00014191,2]
[353112033,1739563889570,-500.0,0.00014191,2]
[353112034,1739563889581,-625.08,0.00014191,2]
[353112035,1739563889591,-853.7,0.00014191,2]
[353112036,1739563889601,-500.0,0.00014191,2]
[353112037,1739563889611,-500.0,0.00014191,2]
[353112038,1739563889621,-500.0,0.00014191,2]
[353112039,1739563889631,-676.98,0.00014191,2]
[353112040,1739563889641,-500.0,0.00014191,2]
[353112041,1739563889652,-500.0,0.00014191,2]
[353112042,1739563889662,-500.0,0.00014191,2]
[353112043,1739563889672,-500.0,0.00014191,2]
[353112044,1739563889682,-950.09,0.00014191,2]
[353112045,1739563889692,-668.29,0.00014191,2]
[353112046,1739563889701,-500.0,0.00014191,2]
[353112047,1739563889711,-500.0,0.00014191,2]
[353112048,1739563889721,-660.92,0.00014191,2]
[353112049,1739563889731,-995.95,0.00014191,2]
[353112050,1739563889740,-500.0,0.00014191,2]
[353112051,1739563889750,-500.0,0.00014191,2]
[353112052,1739563889760,-500.0,0.00014191,2]
[353112053,1739563889771,-1709.4,0.00014191,2]
[353112054,1739563889782,-500.0,0.00014191,2]
[353112055,1739563889792,-500.0,0.00014191,2]
[353112056,1739563889802,-500.0,0.00014191,2]
[353112057,1739563889812,-500.0,0.00014191,2]
[353112058,1739563889823,-523.35,0.00014191,2]
[353112059,1739563889833,-500.0,0.00014191,2]
[353112060,1739563889844,-507.17942882,0.00014191,2]
[353112061,1739563889854,-500.0,0.00014191,2]
[353112062,1739563889865,-1180.81,0.00014191,2]
[353112063,1739563889875,-500.0,0.00014191,2]
[353112064,1739563889886,-500.0,0.00014191,2]
[353112065,1739563889896,-755.13,0.00014191,2]
[353112066,1739563889905,-500.0,0.00014191,2]
[353112067,1739563889915,-500.0,0.00014191,2]
[353112068,1739563889925,-1199.62,0.00014191,2]
[353112069,1739563889936,-631.11,0.00014191,2]
[353112070,1739563889945,-1064.28,0.00014191,2]
[353112071,1739563889956,-1531.24,0.00014191,2]
[353112072,1739563889965,-572.75523483,0.00014191,2]
[353112073,1739563889976,-500.0,0.00014191,2]
[353112074,1739563889986,-500.0,0.00014191,2]
[353112075,1739563889998,-500.0,0.00014191,2]
[353112076,1739563890008,-551.51182363,0.00014191,2]
[353112077,1739563890017,-1025.43,0.00014191,2]
[353112078,1739563890027,-2028.79,0.00014191,2]
[353112079,1739563890038,-500.0,0.00014191,2]
[353112080,1739563890048,-500.0,0.00014191,2]
[353112081,1739563890058,-500.0,0.00014191,2]
[353112082,1739563890068,-151.0,0.00014191,2]
[353112083,1739563890078,-500.0,0.00014191,2]
[353112084,1739563890088,-758.5,0.00014191,2]
[353112085,1739563890200,-505.68118884,0.00014191,2]
[353112086,1739563890211,-1698.76,0.00014191,2]
[353112087,1739563890221,-804.17,0.00014191,2]
[353112088,1739563890231,-500.0,0.00014191,2]
[353112089,1739563890240,-1295.63,0.00014191,2]
[353112090,1739563890250,-507.67,0.00014191,2]
[353112091,1739563890260,-500.0,0.00014191,2]
[353112092,1739563890270,-1117.17,0.00014191,2]
[353112093,1739563890280,-688.3,0.00014191,2]
[353112094,1739563890290,-500.0,0.00014191,2]
[353112095,1739563890299,-836.44,0.00014191,2]
[353112096,1739563890308,-1041.16,0.00014191,2]
[353112097,1739563890318,-500.0,0.00014191,2]
[353112098,1739563890328,-852.14,0.00014191,2]
[353112099,1739563890337,-1937.88,0.00014191,2]
[353112100,1739563890346,-500.0,0.00014191,2]
[353112101,1739563890356,-1330.27,0.00014191,2]
[353112102,1739563890367,-500.0,0.00014191,2]
[353112103,1739563890380,-575.1,0.00014191,2]
[353112104,1739563890389,-2044.64,0.00014191,2]
[353112105,1739563890399,-642.84,0.00014191,2]
[353112106,1739563890409,-2030.11,0.00014191,2]
[353112107,1739563890418,-698.08,0.00014191,2]
[353112108,1739563890427,-798.39,0.00014191,2]
[353112109,1739563890437,-500.0,0.00014191,2]
[353112110,1739563890446,-2250.74,0.00014191,2]
[353112111,1739563890456,-1404.78,0.00014191,2]
[353112112,1739563890467,-500.0,0.00014191,2]
[353112113,1739563890476,-500.0,0.00014191,2]
[353112114,1739563890486,-796.51,0.00014191,2]
[353112115,1739563890496,-500.0,0.00014191,2]
[353112116,1739563890505,-500.0,0.00014191,2]
[353112117,1739563890515,-1623.37,0.00014191,2]
[353112118,1739563890525,-501.26,0.00014191,2]
[353112119,1739563890535,-883.87,0.00014191,2]
[353112120,1739563890545,-500.0,0.00014191,2]
[353112121,1739563890555,-500.0,0.00014191,2]
[353112122,1739563890566,-784.8,0.00014191,2]
[353112123,1739563890576,-623.91,0.00014191,2]
[353112124,1739563890586,-505.25,0.00014191,2]
[353112125,1739563890595,-962.51,0.00014191,2]
[353112126,1739563890604,-500.0,0.00014191,2]
[353112127,1739563890613,-500.0,0.00014191,2]
[353112128,1739563890623,-721.61,0.00014191,2]
[353112129,1739563890634,-825.62,0.00014191,2]
[353112130,1739563890645,-784.42,0.00014191,2]
[353112131,1739563890654,-500.0,0.00014191,2]
[353112132,1739563890664,-1808.0,0.00014191,2]
[353112133,1739563890676,-1280.46,0.00014191,2]
[353112134,1739563890686,-500.0,0.00014191,2]
[353112135,1739563890695,-607.26,0.00014191,2]
[353112136,1739563890706,-505.48807296,0.00014191,2]
[353112137,1739563890716,-1169.14,0.00014191,2]
[353112138,1739563890726,-500.0,0.00014191,2]
[353112139,1739563890738,-500.0,0.00014191,2]
[353112140,1739563890748,-500.0,0.00014191,2]
[353112141,1739563890758,-1613.47,0.00014191,2]
[353112142,1739563890767,-500.0,0.00014191,2]
[353112143,1739563890778,-500.0,0.00014191,2]
[353112144,1739563890789,-500.0,0.00014191,2]
[353112145,1739563890799,-275.6788543,0.00014191,2]
[353112146,1739563890809,-1107.07,0.00014191,2]
[353112147,1739563890819,-151.0,0.00014191,2]
[353112148,1739563890828,-967.62,0.00014191,2]
[353112149,1739563890839,-754.08,0.00014191,2]
[353112150,1739563890848,-606.58,0.00014191,2]
[353112151,1739563890858,-500.0,0.00014191,2]
[353112152,1739563890868,-1281.16,0.00014191,2]
[353112153,1739563890880,-500.0,0.00014191,2]
[353112154,1739563890889,-663.92,0.00014191,2]
[353112155,1739563890899,-500.0,0.00014191,2]
[353112156,1739563890909,-500.0,0.00014191,2]
[353112157,1739563890919,-500.0,0.00014191,2]
[353112158,1739563890929,-854.68,0.00014191,2]
[353112159,1739563890939,-897.34,0.00014191,2]
[353112160,1739563890948,-1076.86,0.00014191,2]
[353112161,1739563890958,-1280.76,0.00014191,2]
[353112162,1739563890968,-612.38,0.00014191,2]
[353112163,1739563890977,-500.0,0.00014191,2]
[353112164,1739563890987,-603.04,0.00014191,2]
[353112165,1739563890997,-1338.87,0.00014191,2]
[353112166,1739563891006,-500.0,0.00014191,2]
[353112167,1739563891016,-607.73,0.00014191,2]
[353112168,1739563891026,-934.27,0.00014191,2]
[353112169,1739563891038,-500.0,0.00014191,2]
[353112170,1739563891049,-184.53781333,0.00014191,2]
[353112171,1739563891058,-500.0,0.00014191,2]
[353112172,1739563891067,-500.0,0.00014191,2]
[353112173,1739563891077,-577.53,0.00014191,2]
[353112174,1739563891087,-1672.07,0.00014191,2]
[353112175,1739563891097,-907.46,0.00014191,2]
[353112176,1739563891107,-386.43568603,0.00014191,2]
[353112177,1739563891117,-1068.63,0.00014191,2]
[353112178,1739563891127,-575.49,0.00014191,2]
[353112179,1739563891136,-668.43,0.00014191,2]
[353112180,1739563891146,-500.0,0.00014191,2]
[353112181,1739563891156,-572.87,0.00014191,2]
[353112182,1739563891165,-738.25,0.00014191,2]
[353112183,1739563891175,-500.0,0.00014191,2]
[353112184,1739563891184,-1304.96,0.00014191,2]
[353112185,1739563891194,-500.0,0.00014191,2]
[353112186,1739563891203,-883.57,0.00014191,2]
[353112187,1739563891213,-500.0,0.00014191,2]
[353112188,1739563891223,-500.0,0.00014191,2]
[353112189,1739563891233,-500.0,0.00014191,2]
[353112190,1739563891242,-500.0,0.00014191,2]
[353112191,1739563891251,-618.98,0.00014191,2]
[353112192,1739563891260,-500.0,0.00014191,2]
[353112193,1739563891271,-573.63,0.00014191,2]
[353112194,1739563891281,-640.68,0.00014191,2]
[353112195,1739563891291,-500.0,0.00014191,2]
[353112196,1739563891301,-500.0,0.00014191,2]
[353112197,1739563891311,-500.0,0.00014191,2]
[353112198,1739563891321,-500.0,0.00014191,2]
[353112199,1739563891330,-991.46,0.00014191,2]
[353112200,1739563891340,-698.97,0.00014191,2]
[353112201,1739563891350,-984.87,0.00014191,2]
[353112202,1739563891360,-1209.25,0.00014191,2]
[353112203,1739563891369,-525.62,0.00014191,2]
[353112204,1739563891381,-500.0,0.00014191,2]
[353112205,1739563891390,-500.0,0.00014191,2]
[353112206,1739563891400,-536.36,0.00014191,2]
[353112207,1739563891409,-877.73,0.00014191,2]
[353112208,1739563891420,-1372.53,0.00014191,2]
[353112209,1739563891429,-1335.45,0.00014191,2]
[353112210,1739563891439,-500.0,0.00014191,2]
[353112211,1739563891448,-500.0,0.00014191,2]
[353112212,1739563891459,-519.4,0.00014191,2]
[353112213,1739563891470,-500.0,0.00014191,2]
[353112214,1739563891479,-500.0,0.00014191,2]
[353112215,1739563891489,-500.0,0.00014191,2]
[353112216,1739563891499,-814.24,0.00014191,2]
[353112217,1739563891508,-893.93,0.00014191,2]
[353112218,1739563891518,-500.0,0.00014191,2]
[353112219,1739563891528,-980.55,0.00014191,2]
[353112220,1739563891539,-500.0,0.00014191,2]
[353112221,1739563891548,-2647.93,0.00014191,2]
[353112222,1739563891558,-624.08,0.00014191,2]
[353112223,1739563891568,-500.0,0.00014191,2]
[353112224,1739563891578,-706.55,0.00014191,2]
[353112225,1739563891587,-585.87,0.00014191,2]
[353112226,1739563891598,-1360.96,0.00014191,2]
[353112227,1739563891607,-579.67,0.00014191,2]
[353112228,1739563891617,-500.0,0.00014191,2]
[353112229,1739563891627,-500.0,0.00014191,2]
[353112230,1739563891637,-500.0,0.00014191,2]
[353112231,1739563891646,-902.8,0.00014191,2]
[353112232,1739563891656,-610.71,0.00014191,2]
[353112233,1739563891666,-1001.64,0.00014191,2]
[353112234,1739563891676,-500.0,0.00014191,2]
[353112235,1739563891686,-776.75,0.00014191,2]
[353112236,1739563891696,-987.29,0.00014191,2]
[353112237,1739563891706,-500.0,0.00014191,2]
[353112238,1739563891715,-919.94,0.00014191,2]
[353112239,1739563891725,-728.31,0.00014191,2]
[353112240,1739563891736,-581.83,0.00014191,2]
[353112241,1739563891746,-975.51,0.00014191,2]
[353112242,1739563891755,-1504.69,0.00014191,2]
[353112243,1739563891766,-500.0,0.00014191,2]
[353112244,1739563891775,-500.0,0.00014191,2]
[353112245,1739563891786,-1633.3,0.00014191,2]
[353112246,1739563891796,-518.74,0.00014191,2]
[353112247,1739563891807,-622.4,0.00014191,2]
[353112248,1739563891817,-500.0,0.00014191,2]
[353112249,1739563891827,-823.68,0.00014191,2]
[353112250,1739563891836,-848.64,0.00014191,2]
[353112251,1739563891846,-500.0,0.00014191,2]
[353112252,1739563891856,-500.0,0.00014191,2]
[353112253,1739563891866,-1282.24,0.00014191,2]
[353112254,1739563891877,-500.0,0.00014191,2]
[353112255,1739563891888,-500.0,0.00014191,2]
[353112256,1739563891899,-1711.64,0.00014191,2]
[353112257,1739563891909,-787.78,0.00014191,2]
[353112258,1739563891919,-500.0,0.00014191,2]
[353112259,1739563891928,-500.0,0.00014191,2]
[353112260,1739563891939,-500.0,0.00014191,2]
[353112261,1739563891949,-500.0,0.00014191,2]
[353112262,1739563891959,-500.0,0.00014191,2]
[353112263,1739563891968,-878.18,0.00014191,2]
[353112264,1739563891978,-456.90117038,0.00014191,2]
[353112265,1739563891989,-500.0,0.00014191,2]
[353112266,1739563891999,-663.1,0.00014191,2]
[353112267,1739563892010,-1374.74,0.00014191,2]
[353112268,1739563892021,-500.0,0.00014191,2]
[353112269,1739563892032,-1402.88,0.00014191,2]
[353112270,1739563892041,-1965.42,0.00014191,2]
[353112271,1739563892053,-500.0,0.00014191,2]
[353112272,1739563892063,-500.0,0.00014191,2]
[353112273,1739563892073,-822.86,0.00014191,2]
[353112274,1739563892084,-635.77,0.00014191,2]
[353112275,1739563892095,-1627.29,0.00014191,2]
[353112276,1739563892106,-500.0,0.00014191,2]
[353112277,1739563892118,-500.0,0.00014191,2]
[353112278,1739563892129,-968.89,0.00014191,2]
[353112279,1739563892139,-577.1,0.00014191,2]
[353112280,1739563892149,-500.0,0.00014191,2]
[353112281,1739563892160,-655.39,0.00014191,2]
[353112282,1739563892169,-814.03,0.00014191,2]
[353112283,1739563892181,-500.0,0.00014191,2]
[353112284,1739563892191,-735.84,0.00014191,2]
[353112285,1739563892201,-1560.32,0.00014191,2]
[353112286,1739563892211,-1807.63,0.00014191,2]
[353112287,1739563892221,-2596.59,0.00014191,2]
[353112288,1739563892231,-763.37,0.00014191,2]
[353112289,1739563892242,-500.0,0.00014191,2]
[353112290,1739563892252,-787.22,0.00014191,2]
[353112291,1739563892262,-500.0,0.00014191,2]
[353112292,1739563892273,-1229.5,0.00014191,2]
[353112293,1739563892283,-1636.31,0.00014191,2]
[353112294,1739563892293,-790.1,0.00014191,2]
[353112295,1739563892303,-500.0,0.00014191,2]
[353112296,1739563892314,-2044.686389,0.00014191,2]
[353112297,1739563892323,-1878.57,0.00014191,2]
[353112298,1739563892333,-500.0,0.00014191,2]
[353112299,1739563892343,-707.21,0.00014191,2]
[353112300,1739563892353,-1018.1,0.00014191,2]
[353112301,1739563892363,-1364.44,0.00014191,2]
[353112302,1739563892375,-1211.82,0.00014191,2]
[353112303,1739563892385,-661.68,0.00014191,2]
[353112304,1739563892395,-500.0,0.00014191,2]
[353112305,1739563892406,-500.0,0.00014191,2]
[353112306,1739563892418,-4284.85,0.00014191,2]
[353112307,1739563892428,-3602.81,0.00014191,2]
[353112308,1739563892438,-1055.89,0.00014191,2]
[353112309,1739563892451,-1822.84,0.00014191,2]
[353112310,1739563892463,-521.88,0.00014191,2]
[353112311,1739563892473,-1380.9,0.00014191,2]
[353112312,1739563892485,-500.0,0.00014191,2]
[353112313,1739563892496,-500.0,0.00014191,2]
[353112314,1739563892508,-2099.924062,0.00014191,2]
[353112315,1739563892521,-1817.13,0.00014191,2]
[353112316,1739563892531,-500.0,0.00014191,2]
[353112317,1739563892541,-569.83,0.00014191,2]
[353112318,1739563892551,-500.0,0.00014191,2]